[Event "FIDE WYCC Girls U18 2023"]
[Site "Montesilvano"]
[Date "2023.11.22"]
[Round "9.19"]
[White "Wan, Qian"]
[Black "Belattar, Ines"]
[Result "1-0"]
[ECO "A46"]
[WhiteElo "1945"]
[BlackElo "1623"]
[Annotator "NA RC"]
[PlyCount "143"]
[EventDate "2023.11.13"]
[EventType "swiss"]
[EventCountry "ITA"]
[SourceTitle "playchess.com"]
[Source "ChessBase"]
[SourceQuality "1"]
[TimeControl "40/5400+30:1800+30"]

1. d4 {[%emt 0:00:03]} Nf6 {[%emt 0:00:32]} 2. Nf3 {[%emt 0:00:16]} e6 {[%emt 0:00:48]} 3. Bf4 {[%emt 0:00:20]} d5 {[%emt 0:00:51]} 4. e3 {[%emt 0:00:08]} c5 {[%emt 0:00:21]} 5. c3 {[%emt 0:00:07]} Bd6 {[%emt 0:04:48]} 6. Bb5+ {[%emt 0:05:24]} Nc6 {[%emt 0:08:36]} 7. Qa4 {[%emt 0:05:18]} Bxf4 {[%emt 0:00:49]} 8. exf4 {[%emt 0:00:14]} Qb6 {[%emt 0:04:57]} 9. Nbd2 {[%emt 0:07:37]} O-O {[%emt 0:01:59]} 10. O-O {[%emt 0:05:32]} Bd7 {[%emt 0:07:03]} 11. Nb3 {[%emt 0:14:50]} c4 {[%emt 0:05:40]} 12. Nbd2 {[%emt 0:01:57]} a6 {[%emt 0:12:08]} 13. Bxc6 {[%emt 0:00:08]} Bxc6 {[%emt 0:03:02]} 14. Qc2 {[%emt 0:00:10]} Qc7 {[%emt 0:01:11]} 15. g3 {[%emt 0:00:41]} a5 {[%emt 0:13:32]} 16. Rfe1 {[%emt 0:06:21]} b5 {[%emt 0:05:20]} 17. Ne5 {[%emt 0:05:59]} b4 {[%emt 0:09:25]} 18. b3 {[%emt 0:08:30]} cxb3 {[%emt 0:04:55]} 19. Qxb3 {[%emt 0:00:08]} Qb7 {[%emt 0:06:48]} 20. Reb1 {[%emt 0:04:54]} Rfb8 {[%emt 0:03:10]} 21. a3 {[%emt 0:00:29]} Nd7 {[%emt 0:01:13]} 22. axb4 {[%emt 0:04:07]} Nxe5 {[%emt 0:00:45]} 23. fxe5 {[%emt 0:00:11]} a4 {[%emt 0:01:05]} 24. Qb2 {[%emt 0:01:20]} Bb5 {[%emt 0:00:29]} 25. Re1 {[%emt 0:00:43]} Rc8 {[%emt 0:00:50]} 26. Re3 {[%emt 0:01:58]} Qa6 {[%emt 0:00:53]} 27. Ra3 {[%emt 0:02:29]} Rc7 {[%emt 0:00:41]} 28. Nf3 {[%emt 0:02:23]} Qc6 {[%emt 0:00:33]} 29. Ne1 {[%emt 0:02:51]} Qc4 {[%emt 0:00:51]} 30. Nd3 {[%emt 0:00:02]} Rac8 {[%emt 0:00:43]} 31. Qb1 {[%emt 0:00:25]} Qc6 {[%emt 0:01:05]} 32. Nc5 {[%emt 0:00:09]} Ra8 {[%emt 0:00:26]} 33. Qd1 {[%emt 0:00:31]} Re7 {[%emt 0:00:51]} 34. h4 Qc7 35. h5 {[%emt 0:00:29]} g6 {[%emt 0:00:51]} 36. Qf3 {[%emt 0:05:15]} Qd8 {[%emt 0:00:14]} 37. h6 {[%emt 0:00:42]} Qf8 {[%emt 0:00:12]} 38. Qf4 {[%emt 0:00:10]} Rc7 {[%emt 0:00:43]} 39. Rf3 {[%emt 0:00:47]} Be2 {[%emt 0:00:06]} 40. Re3 {[%emt 0:00:00]} Bb5 {[%emt 0:00:00]} 41. g4 {[%emt 0:06:06]} Qe7 {[%emt 0:04:01]} 42. Qf6 {[%emt 0:10:54]} Qxf6 {[%emt 0:02:26]} 43. exf6 {[%emt 0:00:02]} Kf8 {[%emt 0:03:47]} 44. Rxe6 {[%emt 0:06:17]} Rxc5 {[%emt 0:03:27]} 45. Rb6 {[%emt 0:00:05]} Rc6 {[%emt 0:00:35]} 46. Rxb5 {[%emt 0:00:04]} Rxf6 {[%emt 0:00:24]} 47. Rxd5 {[%emt 0:00:09]} Rf4 {[%emt 0:00:21]} 48. g5 {[%emt 0:03:14]} Rf3 {[%emt 0:04:25]} 49. Kg2 {[%emt 0:00:39]} Rd3 {[%emt 0:00:24]} 50. Re5 {[%emt 0:01:31]} Rd1 {[%emt 0:02:21]} 51. Ra5 {[%emt 0:00:15]} Re8 {[%emt 0:01:38]} 52. R3xa4 {[%emt 0:00:14]} Ree1 {[%emt 0:00:45]} 53. Re5 {[%emt 0:00:32]} Rxe5 {[%emt 0:00:58]} 54. dxe5 {[%emt 0:00:04]} Rc1 {[%emt 0:00:55]} 55. Ra8+ {[%emt 0:00:14]} Ke7 {[%emt 0:00:10]} 56. Rc8 {[%emt 0:00:03]} Ke6 {[%emt 0:01:01]} 57. Rc5 {[%emt 0:00:04]} Kf5 {[%emt 0:00:33]} 58. b5 {[%emt 0:00:10]} Re1 {[%emt 0:04:35]} 59. e6+ {[%emt 0:02:15]} Kxe6 {[%emt 0:00:20]} 60. c4 {[%emt 0:00:04]} Kd6 {[%emt 0:00:58]} 61. Rc6+ {[%emt 0:00:15]} Kd7 {[%emt 0:00:54]} 62. c5 {[%emt 0:01:05]} Rb1 {[%emt 0:01:34]} 63. Rd6+ {[%emt 0:00:13]} Ke7 {[%emt 0:00:47]} 64. b6 {[%emt 0:00:06]} Rb5 {[%emt 0:00:50]} 65. Rc6 {[%emt 0:00:05]} Kd7 {[%emt 0:00:26]} 66. Rc7+ {[%emt 0:00:04]} Kd8 {[%emt 0:00:43]} 67. f4 {[%emt 0:00:11]} Rb2+ {[%emt 0:01:28]} 68. Kf3 {[%emt 0:00:07]} Rb3+ {[%emt 0:00:20]} 69. Kg4 {[%emt 0:00:06]} Rb1 {[%emt 0:00:56]} 70. Rxf7 {[%emt 0:00:09]} Rg1+ {[%emt 0:01:38]} 71. Kf3 {[%emt 0:00:05]} Rf1+ {[%emt 0:00:08]} 72. Kg2 {[%emt 0:00:06]} 1-0

[Event "FIDE WYCC Girls U18 2023"]
[Site "Montesilvano"]
[Date "2023.11.22"]
[Round "9.20"]
[White "Keerti Shree Reddy"]
[Black "Katter, Katharina"]
[Result "1-0"]
[ECO "C70"]
[WhiteElo "1741"]
[BlackElo "1887"]
[Annotator "NA RC"]
[PlyCount "93"]
[EventDate "2023.11.13"]
[EventType "swiss"]
[EventCountry "ITA"]
[SourceTitle "playchess.com"]
[Source "ChessBase"]
[SourceQuality "1"]
[TimeControl "40/5400+30:1800+30"]

1. e4 {[%emt 0:02:39]} e5 {[%emt 0:00:14]} 2. Nf3 {[%emt 0:00:07]} Nc6 {[%emt 0:00:14]} 3. Bb5 {[%emt 0:00:12]} a6 {[%emt 0:00:08]} 4. Ba4 {[%emt 0:00:04]} b5 {[%emt 0:00:12]} 5. Bb3 {[%emt 0:00:05]} Na5 {[%emt 0:00:08]} 6. Bd5 {[%emt 0:18:10]} c6 {[%emt 0:06:57]} 7. Bxf7+ {[%emt 0:01:07]} Kxf7 {[%emt 0:00:50]} 8. Nxe5+ {[%emt 0:00:10]} Ke7 {[%emt 0:00:58]} 9. Qh5 {[%emt 0:04:11]} Qe8 {[%emt 0:01:41]} 10. Qh4+ {[%emt 0:02:04]} Nf6 {[%emt 0:01:26]} 11. d3 {[%emt 0:02:25]} d6 {[%emt 0:08:58]} 12. Nf3 {[%emt 0:11:16]} Qh5 {[%emt 0:07:49]} 13. Qf4 {[%emt 0:16:21]} Kd7 {[%emt 0:10:00]} 14. h3 {[%emt 0:09:19]} Kc7 {[%emt 0:02:30]} 15. a4 {[%emt 0:01:35]} b4 {[%emt 0:04:08]} 16. Be3 {[%emt 0:05:12]} Be7 {[%emt 0:03:51]} 17. Qg3 {[%emt 0:02:20]} Qg6 {[%emt 0:05:27]} 18. Qh2 {[%emt 0:00:56]} Rd8 {[%emt 0:06:03]} 19. Nbd2 {[%emt 0:01:00]} Rb8 {[%emt 0:01:27]} 20. c4 {[%emt 0:01:00]} Kb7 {[%emt 0:05:35]} 21. c5 {[%emt 0:02:47]} Ne8 {[%emt 0:09:13]} 22. Nd4 {[%emt 0:02:44]} dxc5 {[%emt 0:02:53]} 23. N4b3 {[%emt 0:06:07]} Nxb3 {[%emt 0:00:14]} 24. Nxb3 {[%emt 0:00:04]} Rxd3 {[%emt 0:01:32]} 25. Na5+ {[%emt 0:04:31]} Ka8 {[%emt 0:00:42]} 26. O-O {[%emt 0:00:51]} Qxe4 {[%emt 0:03:27]} 27. Bf4 {[%emt 0:03:01]} Bd6 {[%emt 0:01:35]} 28. Bxd6 {[%emt 0:00:28]} Nxd6 {[%emt 0:00:13]} 29. Rae1 {[%emt 0:00:34]} Qd5 {[%emt 0:00:58]} 30. Re5 {[%emt 0:00:09]} Qf7 {[%emt 0:04:23]} 31. Nxc6 {[%emt 0:00:22]} Qc7 {[%emt 0:04:23]} 32. Nxb8 {[%emt 0:00:32]} Kxb8 {[%emt 0:00:08]} 33. Rfe1 {[%emt 0:00:46]} Nc4 {[%emt 0:01:00]} 34. Rxc5 {[%emt 0:00:36]} Qxh2+ {[%emt 0:01:08]} 35. Kxh2 {[%emt 0:00:04]} Nd6 {[%emt 0:02:30]} 36. Re7 {[%emt 0:01:15]} Rd2 {[%emt 0:00:13]} 37. Rxg7 {[%emt 0:00:19]} Rxb2 {[%emt 0:00:32]} 38. Rc6 {[%emt 0:00:38]} Nf5 {[%emt 0:01:26]} 39. Rxh7 {[%emt 0:00:51]} Rxf2 {[%emt 0:00:38]} 40. Rb6+ {[%emt 0:00:00]} Ka8 {[%emt 0:00:00]} 41. Rc7 {[%emt 0:03:27]} Ne3 {[%emt 0:01:53]} 42. Rxc8+ {[%emt 0:01:02]} Ka7 {[%emt 0:00:04]} 43. Rxb4 {[%emt 0:07:07]} Rxg2+ {[%emt 0:06:14]} 44. Kh1 {[%emt 0:00:05]} Rg3 {[%emt 0:00:38]} 45. Rc7+ {[%emt 0:02:36]} Ka8 {[%emt 0:00:06]} 46. Rh7 {[%emt 0:00:31]} Rg8 {[%emt 0:00:25]} 47. Rb6 {[%emt 0:01:26]} 1-0

[Event "FIDE WYCC Girls U18 2023"]
[Site "Montesilvano"]
[Date "2023.11.22"]
[Round "9.21"]
[White "O'Carroll, Om"]
[Black "Lindstad, Livia"]
[Result "1-0"]
[ECO "B40"]
[WhiteElo "1737"]
[BlackElo "1848"]
[Annotator "NA RC"]
[PlyCount "111"]
[EventDate "2023.11.13"]
[EventType "swiss"]
[EventCountry "ITA"]
[SourceTitle "playchess.com"]
[Source "ChessBase"]
[SourceQuality "1"]
[TimeControl "40/5400+30:1800+30"]

1. e4 {[%emt 0:00:02]} c5 {[%emt 0:00:12]} 2. Nf3 {[%emt 0:00:08]} e6 {[%emt 0:00:14]} 3. c4 {[%emt 0:00:06]} a6 {[%emt 0:01:03]} 4. d4 {[%emt 0:00:35]} cxd4 {[%emt 0:00:30]} 5. Nxd4 {[%emt 0:00:07]} Qc7 {[%emt 0:01:06]} 6. Nc3 {[%emt 0:04:32]} Nf6 {[%emt 0:01:51]} 7. Be2 {[%emt 0:12:57]} Bb4 {[%emt 0:01:16]} 8. Qd3 {[%emt 0:01:42]} Bxc3+ {[%emt 0:05:46]} 9. bxc3 {[%emt 0:00:22]} Nc6 {[%emt 0:01:56]} 10. Nxc6 {[%emt 0:02:17]} dxc6 {[%emt 0:06:37]} 11. O-O {[%emt 0:14:11]} O-O {[%emt 0:07:23]} 12. Bg5 {[%emt 0:05:01]} Qe5 {[%emt 0:04:37]} 13. Bxf6 {[%emt 0:10:40]} Qxf6 {[%emt 0:00:28]} 14. f4 {[%emt 0:06:48]} Qe7 {[%emt 0:15:47]} 15. Rad1 {[%emt 0:09:58]} Qc5+ {[%emt 0:08:49]} 16. Kh1 {[%emt 0:01:47]} b5 {[%emt 0:11:37]} 17. Qd6 {[%emt 0:00:46]} Qe3 {[%emt 0:03:16]} 18. Qxc6 {[%emt 0:07:19]} Ra7 {[%emt 0:01:51]} 19. Bd3 {[%emt 0:02:18]} Rd7 {[%emt 0:01:24]} 20. Bb1 {[%emt 0:04:09]} Qe2 {[%emt 0:01:05]} 21. Rde1 {[%emt 0:02:14]} Qxc4 {[%emt 0:06:11]} 22. Qxc4 {[%emt 0:00:10]} bxc4 {[%emt 0:00:01]} 23. Rd1 {[%emt 0:00:49]} Rfd8 {[%emt 0:00:26]} 24. Bc2 {[%emt 0:00:28]} Bb7 {[%emt 0:01:33]} 25. e5 {[%emt 0:00:36]} Rd2 {[%emt 0:01:37]} 26. Rxd2 {[%emt 0:08:29]} Rxd2 {[%emt 0:00:02]} 27. Rd1 {[%emt 0:00:12]} Bxg2+ {[%emt 0:00:29]} 28. Kg1 {[%emt 0:00:04]} Rxd1+ {[%emt 0:00:10]} 29. Bxd1 {[%emt 0:00:02]} Bd5 {[%emt 0:04:49]} 30. Kf2 {[%emt 0:00:19]} f6 {[%emt 0:06:05]} 31. Ke3 {[%emt 0:00:32]} fxe5 {[%emt 0:00:29]} 32. fxe5 {[%emt 0:00:07]} Kf7 {[%emt 0:00:19]} 33. Bh5+ {[%emt 0:01:12]} Ke7 {[%emt 0:00:34]} 34. Kd4 {[%emt 0:01:15]} g5 {[%emt 0:02:20]} 35. Kc5 {[%emt 0:01:16]} Kd7 {[%emt 0:00:23]} 36. Kb6 {[%emt 0:01:06]} Be4 {[%emt 0:00:14]} 37. Be2 {[%emt 0:00:43]} Bd5 {[%emt 0:01:28]} 38. a4 {[%emt 0:02:04]} Bc6 {[%emt 0:04:33]} 39. Bxc4 {[%emt 0:00:08]} Bxa4 {[%emt 0:00:11]} 40. Bxa6 {[%emt 0:00:00]} h5 {[%emt 0:00:00]} 41. c4 {[%emt 0:06:45]} g4 {[%emt 0:25:40]} 42. c5 {[%emt 0:01:12]} h4 {[%emt 0:00:33]} 43. Bb7 {[%emt 0:00:23]} g3 {[%emt 0:00:37]} 44. hxg3 {[%emt 0:01:01]} hxg3 {[%emt 0:00:08]} 45. c6+ {[%emt 0:00:13]} Ke7 {[%emt 0:00:19]} 46. c7 {[%emt 0:01:03]} Bd7 {[%emt 0:00:52]} 47. Kc5 {[%emt 0:00:17]} Bc8 {[%emt 0:01:42]} 48. Be4 {[%emt 0:09:45]} Kf7 {[%emt 0:04:40]} 49. Kb6 {[%emt 0:01:37]} Kg7 {[%emt 0:00:38]} 50. Ka7 {[%emt 0:00:18]} Kh6 {[%emt 0:00:09]} 51. Kb8 {[%emt 0:01:26]} Bd7 {[%emt 0:00:11]} 52. Bc6 {[%emt 0:02:50]} Kg7 {[%emt 0:01:44]} 53. c8=Q {[%emt 0:01:24]} Bxc8 {[%emt 0:00:29]} 54. Kxc8 {[%emt 0:00:04]} Kg6 {[%emt 0:00:06]} 55. Kd7 {[%emt 0:00:11]} Kf5 {[%emt 0:00:13]} 56. Kd6 {[%emt 0:00:11]} 1-0

[Event "FIDE WYCC Girls U18 2023"]
[Site "Montesilvano"]
[Date "2023.11.22"]
[Round "9.22"]
[White "Bhagyashree Patil"]
[Black "Sasvatha A"]
[Result "1/2-1/2"]
[ECO "B11"]
[WhiteElo "1830"]
[BlackElo "1568"]
[Annotator "NA RC"]
[PlyCount "121"]
[EventDate "2023.11.13"]
[EventType "swiss"]
[EventCountry "ITA"]
[SourceTitle "playchess.com"]
[Source "ChessBase"]
[SourceQuality "1"]
[TimeControl "40/5400+30:1800+30"]

1. e4 {[%emt 0:02:13]} c6 {[%emt 0:00:25]} 2. Nc3 {[%emt 0:00:08]} d5 {[%emt 0:00:07]} 3. Nf3 {[%emt 0:00:04]} Bg4 {[%emt 0:00:51]} 4. h3 {[%emt 0:00:09]} Bxf3 {[%emt 0:00:06]} 5. Qxf3 {[%emt 0:00:10]} dxe4 {[%emt 0:03:45]} 6. Nxe4 {[%emt 0:00:30]} Nf6 {[%emt 0:01:06]} 7. Bc4 {[%emt 0:09:25]} e6 {[%emt 0:02:06]} 8. O-O {[%emt 0:02:36]} Nxe4 {[%emt 0:03:04]} 9. Qxe4 {[%emt 0:00:07]} Nd7 {[%emt 0:00:33]} 10. d3 {[%emt 0:03:43]} Nf6 {[%emt 0:01:23]} 11. Qe2 {[%emt 0:05:32]} Be7 {[%emt 0:00:53]} 12. a3 {[%emt 0:03:15]} O-O {[%emt 0:00:31]} 13. b4 {[%emt 0:00:22]} a5 {[%emt 0:01:32]} 14. b5 {[%emt 0:07:17]} Nd5 {[%emt 0:14:29]} 15. Bb2 {[%emt 0:07:07]} cxb5 {[%emt 0:00:37]} 16. Bxb5 {[%emt 0:00:32]} Bf6 {[%emt 0:00:13]} 17. d4 {[%emt 0:02:39]} Qb6 {[%emt 0:02:43]} 18. c3 {[%emt 0:20:18]} Rac8 {[%emt 0:02:13]} 19. Rfc1 {[%emt 0:02:49]} Nf4 {[%emt 0:00:14]} 20. Qf1 {[%emt 0:00:07]} Rfd8 {[%emt 0:00:56]} 21. a4 {[%emt 0:01:15]} Rd5 {[%emt 0:04:23]} 22. g3 {[%emt 0:02:01]} Rg5 {[%emt 0:00:45]} 23. Kh2 {[%emt 0:01:31]} Nh5 {[%emt 0:01:15]} 24. Qd3 {[%emt 0:01:24]} Qc7 {[%emt 0:01:42]} 25. Rc2 {[%emt 0:04:03]} Be7 {[%emt 0:00:16]} 26. Rg1 {[%emt 0:01:33]} Nf6 {[%emt 0:02:43]} 27. c4 {[%emt 0:00:52]} h5 {[%emt 0:00:35]} 28. Bc1 {[%emt 0:05:28]} Rf5 {[%emt 0:00:39]} 29. Re2 {[%emt 0:01:20]} h4 {[%emt 0:01:00]} 30. Kg2 {[%emt 0:02:04]} hxg3 {[%emt 0:00:32]} 31. fxg3 {[%emt 0:00:05]} Nh5 {[%emt 0:00:51]} 32. Rge1 {[%emt 0:08:56]} Bg5 {[%emt 0:03:12]} 33. Ba3 {[%emt 0:02:27]} Bh4 {[%emt 0:12:43]} 34. d5 {[%emt 0:00:26]} Bxg3 {[%emt 0:00:40]} 35. d6 {[%emt 0:00:17]} Bxe1 {[%emt 0:14:40]} 36. Qxf5 {[%emt 0:04:26]} exf5 {[%emt 0:00:21]} 37. dxc7 {[%emt 0:00:53]} Nf4+ {[%emt 0:00:16]} 38. Kf1 {[%emt 0:00:43]} Nxe2 {[%emt 0:00:06]} 39. Bd6 {[%emt 0:00:11]} Bg3 {[%emt 0:00:25]} 40. c5 {[%emt 0:00:00]} Rxc7 {[%emt 0:00:00]} 41. Bxc7 {[%emt 0:00:29]} Bxc7 {[%emt 0:12:35]} 42. Kxe2 {[%emt 0:00:02]} f4 {[%emt 0:00:46]} 43. Kf3 {[%emt 0:00:31]} Kf8 {[%emt 0:01:42]} 44. Bd7 {[%emt 0:00:10]} g5 {[%emt 0:00:06]} 45. Bc8 {[%emt 0:00:12]} b6 {[%emt 0:00:06]} 46. cxb6 {[%emt 0:00:06]} Bxb6 {[%emt 0:00:06]} 47. Bf5 {[%emt 0:00:51]} Kg7 {[%emt 0:00:15]} 48. Bc8 {[%emt 0:00:04]} Kg6 {[%emt 0:01:16]} 49. Bd7 {[%emt 0:00:11]} Kh5 {[%emt 0:01:15]} 50. Bc8 {[%emt 0:00:08]} Kg6 {[%emt 0:00:42]} 51. Bd7 {[%emt 0:00:34]} Kf6 {[%emt 0:00:10]} 52. Bc8 {[%emt 0:00:13]} Ke5 {[%emt 0:00:05]} 53. Bd7 {[%emt 0:00:05]} Kd6 {[%emt 0:00:19]} 54. Bc8 {[%emt 0:00:13]} Kc5 {[%emt 0:00:56]} 55. Bf5 {[%emt 0:00:11]} Kb4 {[%emt 0:00:05]} 56. Bd7 {[%emt 0:00:24]} Ka3 {[%emt 0:00:23]} 57. Bc6 {[%emt 0:00:22]} Be3 {[%emt 0:00:16]} 58. Bd7 {[%emt 0:00:15]} Kb4 {[%emt 0:00:10]} 59. Be8 {[%emt 0:00:18]} f5 {[%emt 0:00:41]} 60. Bd7 {[%emt 0:00:09]} Ka3 {[%emt 0:00:17]} 61. Be8 {[%emt 0:00:29]} 1/2-1/2

[Event "FIDE WYCC Girls U18 2023"]
[Site "Montesilvano"]
[Date "2023.11.22"]
[Round "9.23"]
[White "Sukyte, Kotryna"]
[Black "Striskova, Lucia"]
[Result "0-1"]
[ECO "D35"]
[WhiteElo "1651"]
[BlackElo "2039"]
[Annotator "RC"]
[PlyCount "110"]
[EventDate "2023.11.13"]
[EventType "swiss"]
[EventCountry "ITA"]
[SourceTitle "playchess.com"]
[Source "ChessBase"]
[SourceQuality "1"]
[TimeControl "40/5400+30:1800+30"]

1. d4 {[%emt 0:00:02]} Nf6 {[%emt 0:00:35]} 2. c4 {[%emt 0:00:26]} e6 {[%emt 0:00:25]} 3. Nc3 {[%emt 0:00:21]} d5 {[%emt 0:00:36]} 4. cxd5 {[%emt 0:00:25]} exd5 {[%emt 0:00:20]} 5. Bg5 {[%emt 0:00:19]} Be7 {[%emt 0:01:15]} 6. e3 {[%emt 0:00:28]} O-O {[%emt 0:00:56]} 7. Bd3 {[%emt 0:00:30]} Re8 {[%emt 0:01:41]} 8. Nge2 {[%emt 0:01:54]} Nbd7 {[%emt 0:02:05]} 9. Qc2 {[%emt 0:03:31]} c6 {[%emt 0:01:38]} 10. f3 {[%emt 0:01:53]} Nf8 {[%emt 0:03:13]} 11. O-O {[%emt 0:02:58]} g6 {[%emt 0:01:45]} 12. Rae1 {[%emt 0:03:46]} Ne6 {[%emt 0:01:00]} 13. Bh4 {[%emt 0:00:37]} b5 {[%emt 0:02:01]} 14. a3 {[%emt 0:01:04]} a5 {[%emt 0:05:44]} 15. Kh1 {[%emt 0:06:44]} Bb7 {[%emt 0:06:41]} 16. Bf2 {[%emt 0:05:10]} b4 {[%emt 0:04:51]} 17. axb4 {[%emt 0:02:05]} axb4 {[%emt 0:00:24]} 18. Na4 {[%emt 0:04:37]} Rc8 {[%emt 0:06:31]} 19. e4 {[%emt 0:11:47]} Nd7 {[%emt 0:03:40]} 20. exd5 {[%emt 0:13:46]} cxd5 {[%emt 0:00:33]} 21. Qd2 {[%emt 0:01:39]} Bc6 {[%emt 0:05:16]} 22. b3 {[%emt 0:02:16]} Qc7 {[%emt 0:02:51]} 23. Bg3 {[%emt 0:03:47]} Qb7 {[%emt 0:02:00]} 24. Ra1 {[%emt 0:06:37]} Ra8 {[%emt 0:02:27]} 25. Nb2 {[%emt 0:11:59]} Ra3 {[%emt 0:03:09]} 26. Bc2 {[%emt 0:04:44]} Rea8 {[%emt 0:01:34]} 27. Rab1 {[%emt 0:01:21]} Bb5 {[%emt 0:03:49]} 28. Rfe1 {[%emt 0:02:54]} Ndf8 {[%emt 0:07:19]} 29. Nd3 {[%emt 0:01:25]} Ra2 {[%emt 0:04:53]} 30. Nec1 {[%emt 0:01:58]} R2a7 {[%emt 0:11:20]} 31. Nxb4 {[%emt 0:00:33]} Be8 {[%emt 0:00:27]} 32. Nbd3 {[%emt 0:01:26]} Nxd4 {[%emt 0:00:57]} 33. Bd1 {[%emt 0:00:43]} Nfe6 {[%emt 0:01:35]} 34. Bf2 {[%emt 0:01:08]} Ra3 {[%emt 0:00:53]} 35. b4 {[%emt 0:01:01]} Bf6 {[%emt 0:03:47]} 36. Ne5 {[%emt 0:01:29]} Nb5 {[%emt 0:01:34]} 37. Rb3 {[%emt 0:00:40]} d4 {[%emt 0:02:55]} 38. Rxa3 {[%emt 0:00:26]} Rxa3 {[%emt 0:00:12]} 39. Ncd3 {[%emt 0:00:46]} Qd5 {[%emt 0:02:28]} 40. Bc2 {[%emt 0:00:00]} Ra2 {[%emt 0:00:00]} 41. Ng4 {[%emt 0:12:10]} Bg7 {[%emt 0:05:24]} 42. Nc1 {[%emt 0:03:54]} Ra3 {[%emt 0:04:41]} 43. Bg3 {[%emt 0:05:44]} h5 {[%emt 0:04:00]} 44. Nf2 {[%emt 0:01:47]} Kh7 {[%emt 0:04:59]} 45. Be4 {[%emt 0:01:00]} Qd8 {[%emt 0:00:17]} 46. h4 {[%emt 0:02:39]} Bf6 {[%emt 0:02:09]} 47. Kg1 {[%emt 0:02:32]} Bxh4 {[%emt 0:01:20]} 48. Bxh4 {[%emt 0:01:20]} Qxh4 {[%emt 0:00:07]} 49. Bd5 {[%emt 0:01:30]} Bd7 {[%emt 0:04:01]} 50. Nb3 {[%emt 0:01:25]} Nbc7 {[%emt 0:08:47]} 51. Bxe6 {[%emt 0:01:17]} Nxe6 {[%emt 0:00:12]} 52. Re4 {[%emt 0:00:56]} Qg3 {[%emt 0:02:10]} 53. Qb2 {[%emt 0:00:17]} Ra8 {[%emt 0:01:04]} 54. Nxd4 {[%emt 0:00:12]} Nf4 {[%emt 0:00:11]} 55. Nh1 {[%emt 0:00:58]} Ra1+ {[%emt 0:00:09]} 0-1

[Event "FIDE WYCC Girls U18 2023"]
[Site "Montesilvano"]
[Date "2023.11.22"]
[Round "9.24"]
[White "Sosovickova, Jana"]
[Black "Latifah, Darmaki"]
[Result "1-0"]
[ECO "C77"]
[WhiteElo "2013"]
[BlackElo "1367"]
[Annotator "NA RC"]
[PlyCount "43"]
[EventDate "2023.11.13"]
[EventType "swiss"]
[EventCountry "ITA"]
[SourceTitle "playchess.com"]
[Source "ChessBase"]
[SourceQuality "1"]
[TimeControl "40/5400+30:1800+30"]

1. e4 {[%emt 0:00:03]} e5 {[%emt 0:00:06]} 2. Nf3 {[%emt 0:00:03]} Nc6 {[%emt 0:00:06]} 3. Bb5 {[%emt 0:00:07]} a6 {[%emt 0:00:07]} 4. Ba4 {[%emt 0:00:04]} Nf6 {[%emt 0:00:09]} 5. d4 {[%emt 0:00:18]} exd4 {[%emt 0:01:54]} 6. O-O {[%emt 0:00:19]} b5 {[%emt 0:01:41]} 7. e5 {[%emt 0:01:38]} bxa4 {[%emt 0:04:17]} 8. exf6 {[%emt 0:00:32]} Qxf6 {[%emt 0:02:38]} 9. Bg5 {[%emt 0:04:17]} Qg6 {[%emt 0:13:19]} 10. Re1+ {[%emt 0:02:28]} Be7 {[%emt 0:00:33]} 11. Bxe7 {[%emt 0:06:46]} Nxe7 {[%emt 0:00:13]} 12. Qxd4 {[%emt 0:16:15]} Bb7 {[%emt 0:14:33]} 13. Nbd2 a5 {[%emt 0:34:09]} 14. Nh4 {[%emt 0:22:10]} Qc6 {[%emt 0:02:38]} 15. Ndf3 {[%emt 0:07:40]} Qd5 {[%emt 0:12:36]} 16. Qxg7 {[%emt 0:06:04]} O-O-O {[%emt 0:03:35]} 17. Rxe7 {[%emt 0:04:09]} Rhg8 {[%emt 0:04:19]} 18. Qxf7 {[%emt 0:01:20]} Qc6 {[%emt 0:01:15]} 19. Rae1 {[%emt 0:00:22]} d6 {[%emt 0:01:16]} 20. Qf5+ {[%emt 0:02:11]} Kb8 {[%emt 0:00:06]} 21. Qxa5 {[%emt 0:03:59]} Rdf8 {[%emt 0:00:58]} 22. Qc3 {[%emt 0:01:32]} 1-0

[Event "FIDE WYCC Girls U18 2023"]
[Site "Montesilvano"]
[Date "2023.11.22"]
[Round "9.25"]
[White "Largo, Franchesca"]
[Black "Sipos, Stefania"]
[Result "1/2-1/2"]
[ECO "C47"]
[WhiteElo "1658"]
[BlackElo "1932"]
[Annotator "NA RC"]
[PlyCount "89"]
[EventDate "2023.11.13"]
[EventType "swiss"]
[EventCountry "ITA"]
[SourceTitle "playchess.com"]
[Source "ChessBase"]
[SourceQuality "1"]
[TimeControl "40/5400+30:1800+30"]

1. e4 {[%emt 0:00:15]} e5 {[%emt 0:00:06]} 2. Nf3 {[%emt 0:00:24]} Nc6 {[%emt 0:00:05]} 3. Nc3 {[%emt 0:00:19]} Nf6 {[%emt 0:00:21]} 4. d4 {[%emt 0:00:44]} exd4 {[%emt 0:00:14]} 5. Nxd4 {[%emt 0:00:07]} Bc5 {[%emt 0:00:25]} 6. Be3 {[%emt 0:00:36]} Bb6 {[%emt 0:00:14]} 7. Qd2 {[%emt 0:07:49]} O-O {[%emt 0:00:48]} 8. f3 {[%emt 0:02:46]} d5 {[%emt 0:03:30]} 9. Nxc6 {[%emt 0:13:48]} bxc6 {[%emt 0:06:17]} 10. O-O-O {[%emt 0:07:56]} Bxe3 {[%emt 0:04:16]} 11. Qxe3 {[%emt 0:00:09]} Qe7 {[%emt 0:05:15]} 12. Qd4 {[%emt 0:21:58]} Be6 {[%emt 0:11:40]} 13. e5 {[%emt 0:05:10]} Nd7 {[%emt 0:02:50]} 14. Bd3 {[%emt 0:09:56]} Rab8 {[%emt 0:09:19]} 15. a3 {[%emt 0:01:30]} Nb6 {[%emt 0:07:09]} 16. f4 {[%emt 0:08:58]} c5 {[%emt 0:09:02]} 17. Qf2 {[%emt 0:00:09]} c4 {[%emt 0:05:04]} 18. Be2 {[%emt 0:03:38]} c5 {[%emt 0:05:18]} 19. f5 {[%emt 0:08:27]} Qg5+ {[%emt 0:05:34]} 20. Kb1 {[%emt 0:02:06]} Qxf5 {[%emt 0:12:28]} 21. Qxc5 {[%emt 0:01:16]} Qxe5 {[%emt 0:01:52]} 22. Bf3 {[%emt 0:00:45]} Rfc8 {[%emt 0:02:41]} 23. Qd4 {[%emt 0:00:30]} Qd6 {[%emt 0:02:29]} 24. h4 {[%emt 0:01:55]} Qc5 {[%emt 0:04:51]} 25. Qxc5 {[%emt 0:00:28]} Rxc5 {[%emt 0:00:04]} 26. Rd4 {[%emt 0:00:08]} Kf8 {[%emt 0:00:55]} 27. Rhd1 {[%emt 0:00:17]} Rd8 {[%emt 0:00:28]} 28. Kc1 {[%emt 0:01:08]} Ke7 {[%emt 0:00:21]} 29. g4 {[%emt 0:00:39]} g6 {[%emt 0:00:37]} 30. Kd2 {[%emt 0:00:41]} f5 {[%emt 0:00:36]} 31. gxf5 {[%emt 0:00:23]} Bxf5 {[%emt 0:00:23]} 32. Re1+ {[%emt 0:00:56]} Kf7 {[%emt 0:00:30]} 33. Bg4 {[%emt 0:00:36]} Bxg4 {[%emt 0:00:29]} 34. Rxg4 {[%emt 0:00:07]} d4 {[%emt 0:00:29]} 35. Ne4 {[%emt 0:00:12]} c3+ {[%emt 0:00:45]} 36. Kd3 {[%emt 0:00:18]} Rf5 {[%emt 0:00:26]} 37. Ng5+ {[%emt 0:00:15]} Kg8 {[%emt 0:00:25]} 38. Ne6 {[%emt 0:01:21]} Re8 {[%emt 0:00:27]} 39. bxc3 {[%emt 0:00:41]} dxc3 {[%emt 0:00:29]} 40. Nd4 {[%emt 0:00:00]} Rxe1 {[%emt 0:00:00]} 41. Nxf5 {[%emt 0:00:49]} Ra1 {[%emt 0:07:44]} 42. h5 {[%emt 0:05:20]} Rxa3 {[%emt 0:05:49]} 43. hxg6 {[%emt 0:00:23]} hxg6 {[%emt 0:00:28]} 44. Rxg6+ {[%emt 0:00:06]} Kf7 {[%emt 0:00:27]} 45. Rc6 {[%emt 0:01:16]} 1/2-1/2